[Event "*** Titled Tuesday Blitz"]
[Site "Chess.com"]
[Date "2021.03.09"]
[Round "2"]
[White "SharapovEvgeny"]
[Black "lelya96"]
[Result "1/2-1/2"]
[WhiteElo "2453"]
[BlackElo "2252"]
[TimeControl "180+1"]
[EndTime "10:19:08 PST"]
[Termination "Game drawn by repetition"]

1. e4 {[%clk 0:02:59.3]} 1... e5 {[%clk 0:02:59.1]} 2. Nf3 {[%clk 0:02:58.6]}
2... Nc6 {[%clk 0:02:59.3]} 3. Bb5 {[%clk 0:02:57.9]} 3... a6 {[%clk 0:02:59.1]}
4. Ba4 {[%clk 0:02:57.5]} 4... Nf6 {[%clk 0:02:59.4]} 5. O-O {[%clk 0:02:56.4]}
5... b5 {[%clk 0:03:00]} 6. Bb3 {[%clk 0:02:55.5]} 6... Bc5 {[%clk 0:03:00]} 7.
Re1 {[%clk 0:02:53.7]} 7... d6 {[%clk 0:02:58.6]} 8. c3 {[%clk 0:02:53]} 8...
O-O {[%clk 0:02:57.1]} 9. h3 {[%clk 0:02:52.3]} 9... h6 {[%clk 0:02:56.5]} 10.
d4 {[%clk 0:02:51.4]} 10... Bb6 {[%clk 0:02:55.8]} 11. Be3 {[%clk 0:02:50.3]}
11... Bb7 {[%clk 0:02:52.9]} 12. Nbd2 {[%clk 0:02:49.5]} 12... Re8 {[%clk
0:02:52.1]} 13. d5 {[%clk 0:02:46.6]} 13... Ne7 {[%clk 0:02:50.9]} 14. Bxb6
{[%clk 0:02:45.3]} 14... cxb6 {[%clk 0:02:51.8]} 15. c4 {[%clk 0:02:41.2]} 15...
bxc4 {[%clk 0:02:47.9]} 16. Nxc4 {[%clk 0:02:40.5]} 16... b5 {[%clk 0:02:46.3]}
17. Ncd2 {[%clk 0:02:38]} 17... Ng6 {[%clk 0:02:43.6]} 18. Rc1 {[%clk
0:02:33.7]} 18... Qd7 {[%clk 0:02:37.7]} 19. Nf1 {[%clk 0:02:30.8]} 19... Rac8
{[%clk 0:02:24.3]} 20. Ng3 {[%clk 0:02:29.5]} 20... Rxc1 {[%clk 0:02:22.1]} 21.
Qxc1 {[%clk 0:02:28.8]} 21... Rc8 {[%clk 0:02:22.7]} 22. Qd2 {[%clk 0:02:28]}
22... Nf4 {[%clk 0:02:19]} 23. Kh2 {[%clk 0:02:10.6]} 23... Qc7 {[%clk
0:02:10.9]} 24. Nf5 {[%clk 0:02:09.4]} 24... a5 {[%clk 0:02:07]} 25. g3 {[%clk
0:02:07.1]} 25... Ng6 {[%clk 0:02:06.5]} 26. Qe3 {[%clk 0:01:52.3]} 26... a4
{[%clk 0:02:01.2]} 27. Bd1 {[%clk 0:01:50.6]} 27... Qd7 {[%clk 0:01:45.6]} 28.
N3h4 {[%clk 0:01:26.4]} 28... Nxh4 {[%clk 0:01:39.3]} 29. Nxh4 {[%clk
0:01:25.7]} 29... Rc4 {[%clk 0:01:36.6]} 30. f3 {[%clk 0:01:20]} 30... b4 {[%clk
0:01:27.8]} 31. Be2 {[%clk 0:01:19.2]} 31... Rc2 {[%clk 0:01:26.5]} 32. f4
{[%clk 0:00:54]} 32... exf4 {[%clk 0:01:16.5]} 33. gxf4 {[%clk 0:00:53.3]} 33...
Ba6 {[%clk 0:01:14.4]} 34. Kg3 {[%clk 0:00:42.2]} 34... Bxe2 {[%clk 0:01:02.9]}
35. Rxe2 {[%clk 0:00:41.3]} 35... Nh5+ {[%clk 0:01:02.7]} 36. Kh2 {[%clk
0:00:39.5]} 36... Rxe2+ {[%clk 0:01:01.7]} 37. Qxe2 {[%clk 0:00:39.3]} 37...
Nxf4 {[%clk 0:01:01.7]} 38. Qf3 {[%clk 0:00:36.9]} 38... Ng6 {[%clk 0:00:47.7]}
39. Nf5 {[%clk 0:00:33.6]} 39... Qc7 {[%clk 0:00:39.9]} 40. Qg2 {[%clk
0:00:27.5]} 40... Qc1 {[%clk 0:00:36.5]} 41. Nxd6 {[%clk 0:00:23.4]} 41... Qf4+
{[%clk 0:00:36.2]} 42. Qg3 {[%clk 0:00:22.9]} 42... Qd2+ {[%clk 0:00:33.4]} 43.
Qg2 {[%clk 0:00:22.7]} 43... Qf4+ {[%clk 0:00:25.4]} 44. Qg3 {[%clk 0:00:21.8]}
44... Qd2+ {[%clk 0:00:19.5]} 45. Qg2 {[%clk 0:00:17.5]} 45... Qf4+ {[%clk
0:00:19.3]} 1/2-1/2

[Event "*** Titled Tuesday Blitz"]
[Site "Chess.com"]
[Date "2021.03.09"]
[Round "2"]
[White "SergeyShtyka"]
[Black "beto-betun"]
[Result "1/2-1/2"]
[WhiteElo "2441"]
[BlackElo "2221"]
[TimeControl "180+1"]
[EndTime "10:19:08 PST"]
[Termination "Game drawn by repetition"]

1. e4 {[%clk 0:02:58.3]} 1... c5 {[%clk 0:02:59.9]} 2. Nf3 {[%clk 0:02:57.6]}
2... d6 {[%clk 0:03:00]} 3. d4 {[%clk 0:02:57.4]} 3... cxd4 {[%clk 0:03:00.6]}
4. Nxd4 {[%clk 0:02:57.5]} 4... Nf6 {[%clk 0:03:01.3]} 5. Nc3 {[%clk 0:02:57.8]}
5... a6 {[%clk 0:03:01.7]} 6. Bd3 {[%clk 0:02:56.4]} 6... e5 {[%clk 0:03:01.6]}
7. Nde2 {[%clk 0:02:55.5]} 7... Be7 {[%clk 0:03:01.3]} 8. O-O {[%clk 0:02:55.3]}
8... O-O {[%clk 0:03:01.5]} 9. h3 {[%clk 0:02:55.1]} 9... Nbd7 {[%clk
0:02:56.3]} 10. Be3 {[%clk 0:02:54]} 10... b5 {[%clk 0:02:52.8]} 11. a3 {[%clk
0:02:53.5]} 11... Bb7 {[%clk 0:02:52.6]} 12. Ng3 {[%clk 0:02:53.6]} 12... Rc8
{[%clk 0:02:51.3]} 13. Kh1 {[%clk 0:02:43.6]} 13... Nc5 {[%clk 0:02:51]} 14. Qe2
{[%clk 0:02:41.4]} 14... g6 {[%clk 0:02:42.1]} 15. f4 {[%clk 0:02:38.5]} 15...
exf4 {[%clk 0:02:39.6]} 16. Bxf4 {[%clk 0:02:38.3]} 16... Nfd7 {[%clk 0:02:37]}
17. Bh6 {[%clk 0:02:35.8]} 17... Re8 {[%clk 0:02:30.7]} 18. Nf5 {[%clk
0:01:50.3]} 18... Ne5 {[%clk 0:02:20.6]} 19. Ne3 {[%clk 0:01:41.3]} 19... Bg5
{[%clk 0:02:12]} 20. Bxg5 {[%clk 0:01:40.7]} 20... Qxg5 {[%clk 0:02:12.6]} 21.
Ncd5 {[%clk 0:01:37.5]} 21... Bxd5 {[%clk 0:02:13]} 22. Nxd5 {[%clk 0:01:36.5]}
22... Ncd7 {[%clk 0:01:59.7]} 23. a4 {[%clk 0:01:27.6]} 23... bxa4 {[%clk
0:01:50.1]} 24. Rxa4 {[%clk 0:01:25.2]} 24... Nc5 {[%clk 0:01:23.5]} 25. Raa1
{[%clk 0:01:21]} 25... Re6 {[%clk 0:01:13.4]} 26. Bxa6 {[%clk 0:01:10.2]} 26...
Nxa6 {[%clk 0:01:11.3]} 27. Qxa6 {[%clk 0:00:59.8]} 27... Rxc2 {[%clk 0:01:08]}
28. Rg1 {[%clk 0:00:31.4]} 28... Ng4 {[%clk 0:01:00.3]} 29. Raf1 {[%clk
0:00:24.3]} 29... Nf2+ {[%clk 0:00:44.9]} 30. Rxf2 {[%clk 0:00:21.2]} 30... Rxf2
{[%clk 0:00:45.8]} 31. Qc8+ {[%clk 0:00:14.8]} 31... Kg7 {[%clk 0:00:44.5]} 32.
Qc3+ {[%clk 0:00:14.4]} 32... Kh6 {[%clk 0:00:37.9]} 33. Qd3 {[%clk 0:00:09.8]}
33... Qe5 {[%clk 0:00:31.5]} 34. b4 {[%clk 0:00:07.9]} 34... Qxe4 {[%clk
0:00:28.1]} 35. Qd1 {[%clk 0:00:05.6]} 35... Qe2 {[%clk 0:00:26]} 36. Qc1+
{[%clk 0:00:05.7]} 36... Kg7 {[%clk 0:00:21.8]} 37. Qa1+ {[%clk 0:00:05.5]}
37... Kh6 {[%clk 0:00:21.5]} 38. Qc1+ {[%clk 0:00:04.3]} 38... Kg7 {[%clk
0:00:21.5]} 39. Qa1+ {[%clk 0:00:04.3]} 39... Kh6 {[%clk 0:00:21.2]} 40. Qc1+
{[%clk 0:00:03.6]} 1/2-1/2

[Event "*** Titled Tuesday Blitz"]
[Site "Chess.com"]
[Date "2021.03.09"]
[Round "2"]
[White "mishanick"]
[Black "Sadykov_Ramil"]
[Result "1-0"]
[WhiteElo "3005"]
[BlackElo "2587"]
[TimeControl "180+1"]
[EndTime "10:19:10 PST"]
[Termination "mishanick won by resignation"]

1. c4 {[%clk 0:03:00.9]} 1... e6 {[%clk 0:02:58.5]} 2. Nc3 {[%clk 0:03:00.9]}
2... d5 {[%clk 0:02:57.4]} 3. d4 {[%clk 0:02:59.6]} 3... Nf6 {[%clk 0:02:55.7]}
4. cxd5 {[%clk 0:02:58.8]} 4... exd5 {[%clk 0:02:53.7]} 5. Bg5 {[%clk 0:02:59]}
5... c6 {[%clk 0:02:52.3]} 6. e3 {[%clk 0:02:59.4]} 6... Be7 {[%clk 0:02:49.4]}
7. Bd3 {[%clk 0:02:59.5]} 7... Nbd7 {[%clk 0:02:46.9]} 8. Qc2 {[%clk 0:02:57.8]}
8... Nf8 {[%clk 0:02:44.4]} 9. Nf3 {[%clk 0:02:57]} 9... Ne6 {[%clk 0:02:42.6]}
10. Bh4 {[%clk 0:02:57.2]} 10... g6 {[%clk 0:02:40.7]} 11. O-O-O {[%clk
0:02:29.7]} 11... Ng7 {[%clk 0:02:32.8]} 12. Rhe1 {[%clk 0:02:30]} 12... Bf5
{[%clk 0:02:27.7]} 13. e4 {[%clk 0:02:27.3]} 13... dxe4 {[%clk 0:02:25.7]} 14.
Nxe4 {[%clk 0:02:16.7]} 14... O-O {[%clk 0:02:20]} 15. Nc5 {[%clk 0:02:13.6]}
15... b6 {[%clk 0:01:54.2]} 16. Nb3 {[%clk 0:01:39.8]} 16... Rc8 {[%clk
0:01:45.2]} 17. Kb1 {[%clk 0:01:38.5]} 17... Bxd3 {[%clk 0:01:29.3]} 18. Rxd3
{[%clk 0:01:35.3]} 18... Nf5 {[%clk 0:01:30.1]} 19. Bg5 {[%clk 0:01:35.7]} 19...
Nd5 {[%clk 0:01:24.5]} 20. Bxe7 {[%clk 0:01:29.9]} 20... Ndxe7 {[%clk
0:01:16.5]} 21. g4 {[%clk 0:01:21.6]} 21... Ng7 {[%clk 0:01:14.6]} 22. Ne5
{[%clk 0:01:16.8]} 22... Qd6 {[%clk 0:01:02.5]} 23. Qd2 {[%clk 0:01:07.7]} 23...
Nd5 {[%clk 0:00:51.6]} 24. Qh6 {[%clk 0:01:00.8]} 24... f6 {[%clk 0:00:38.7]}
25. Rh3 {[%clk 0:00:44.9]} 25... fxe5 {[%clk 0:00:24.5]} 26. Qxh7+ {[%clk
0:00:44.8]} 26... Kf7 {[%clk 0:00:24.9]} 27. Rf3+ {[%clk 0:00:44.6]} 27... Nf6
{[%clk 0:00:15.4]} 28. Qh4 {[%clk 0:00:17]} 28... exd4 {[%clk 0:00:09.4]} 29. g5
{[%clk 0:00:09.3]} 29... Nf5 {[%clk 0:00:08]} 30. Rxf5 {[%clk 0:00:09.2]} 30...
gxf5 {[%clk 0:00:08.1]} 31. gxf6 {[%clk 0:00:09.9]} 31... Rh8 {[%clk 0:00:07.1]}
32. Qg5 {[%clk 0:00:08.8]} 32... Rcg8 {[%clk 0:00:06.3]} 33. Qxf5 {[%clk
0:00:08.2]} 33... Qxf6 {[%clk 0:00:06.1]} 34. Qd7+ {[%clk 0:00:08.3]} 34... Kg6
{[%clk 0:00:06.3]} 35. Re6 {[%clk 0:00:08.7]} 1-0

[Event "*** Titled Tuesday Blitz"]
[Site "Chess.com"]
[Date "2021.03.09"]
[Round "2"]
[White "TST2014"]
[Black "ARTHURMOTIVATOR"]
[Result "1-0"]
[WhiteElo "2631"]
[BlackElo "2339"]
[TimeControl "180+1"]
[EndTime "10:19:10 PST"]
[Termination "TST2014 won by resignation"]

1. d4 {[%clk 0:03:00.9]} 1... Nf6 {[%clk 0:02:58.8]} 2. c4 {[%clk 0:03:00.3]}
2... g6 {[%clk 0:02:57.8]} 3. Nc3 {[%clk 0:03:00]} 3... Bg7 {[%clk 0:02:57.8]}
4. e4 {[%clk 0:03:00.2]} 4... d6 {[%clk 0:02:57.8]} 5. Nf3 {[%clk 0:02:59.9]}
5... O-O {[%clk 0:02:57.4]} 6. Be2 {[%clk 0:02:59.9]} 6... e5 {[%clk 0:02:57.4]}
7. O-O {[%clk 0:02:59]} 7... Nc6 {[%clk 0:02:55.5]} 8. d5 {[%clk 0:02:58.8]}
8... Ne7 {[%clk 0:02:54.9]} 9. b4 {[%clk 0:02:58.8]} 9... Nh5 {[%clk 0:02:52.9]}
10. g3 {[%clk 0:02:57.8]} 10... f5 {[%clk 0:02:47.7]} 11. Ng5 {[%clk 0:02:57.4]}
11... Nf6 {[%clk 0:02:47.3]} 12. Bf3 {[%clk 0:02:51.1]} 12... Rb8 {[%clk
0:02:45.4]} 13. a4 {[%clk 0:02:33.8]} 13... h6 {[%clk 0:02:38.7]} 14. Ne6 {[%clk
0:02:33]} 14... Bxe6 {[%clk 0:02:38.6]} 15. dxe6 {[%clk 0:02:33.9]} 15... Qc8
{[%clk 0:02:18.2]} 16. Nd5 {[%clk 0:02:27.6]} 16... Qxe6 {[%clk 0:02:15.9]} 17.
Nxc7 {[%clk 0:01:54.6]} 17... Qxc4 {[%clk 0:02:13.6]} 18. Qxd6 {[%clk
0:01:55.1]} 18... Nc6 {[%clk 0:02:02.4]} 19. exf5 {[%clk 0:01:44.5]} 19... e4
{[%clk 0:01:41]} 20. Bd1 {[%clk 0:01:34.9]} 20... Ne8 {[%clk 0:01:03.1]} 21.
Nxe8 {[%clk 0:01:24.7]} 21... Rbxe8 {[%clk 0:00:57.1]} 22. Rb1 {[%clk
0:01:04.8]} 22... Rf6 {[%clk 0:00:41.4]} 23. Qxf6 {[%clk 0:01:02.6]} 23... Bxf6
{[%clk 0:00:38.1]} 24. Bb3 {[%clk 0:01:02.4]} 24... Qxb3 {[%clk 0:00:35.2]} 25.
Rxb3 {[%clk 0:01:03.3]} 25... Nd4 {[%clk 0:00:31.5]} 26. Rb1 {[%clk 0:00:56.9]}
26... gxf5 {[%clk 0:00:24.9]} 27. Bxh6 {[%clk 0:00:55.7]} 27... Kf7 {[%clk
0:00:22.6]} 28. Kg2 {[%clk 0:00:46]} 28... Nf3 {[%clk 0:00:21.3]} 29. h3 {[%clk
0:00:36.7]} 29... Rc8 {[%clk 0:00:17]} 30. Rfc1 {[%clk 0:00:34.6]} 30... Rd8
{[%clk 0:00:14]} 31. Rc7+ {[%clk 0:00:33]} 31... Kg6 {[%clk 0:00:14.2]} 32. Bf4
{[%clk 0:00:32.9]} 32... Rd3 {[%clk 0:00:13.8]} 33. Rxb7 {[%clk 0:00:30.5]}
33... Ra3 {[%clk 0:00:12.2]} 34. Rxa7 {[%clk 0:00:29]} 34... Ra2 {[%clk
0:00:11.2]} 35. Be3 {[%clk 0:00:27.8]} 35... f4 {[%clk 0:00:09.9]} 36. gxf4
{[%clk 0:00:27.6]} 36... Nh4+ {[%clk 0:00:09.9]} 37. Kf1 {[%clk 0:00:24.6]}
37... Nf3 {[%clk 0:00:06.8]} 38. b5 {[%clk 0:00:21.6]} 38... Kf5 {[%clk
0:00:05.6]} 39. b6 {[%clk 0:00:20.5]} 39... Rc2 {[%clk 0:00:02.7]} 1-0

[Event "*** Titled Tuesday Blitz"]
[Site "Chess.com"]
[Date "2021.03.09"]
[Round "2"]
[White "Kale36"]
[Black "Blazinq"]
[Result "1-0"]
[WhiteElo "2325"]
[BlackElo "2582"]
[TimeControl "180+1"]
[EndTime "10:19:12 PST"]
[Termination "Kale36 won by resignation"]

1. b3 {[%clk 0:03:00.9]} 1... e5 {[%clk 0:03:00.1]} 2. Bb2 {[%clk 0:03:01.2]}
2... Nc6 {[%clk 0:03:00.7]} 3. e3 {[%clk 0:03:01.7]} 3... Nf6 {[%clk 0:03:01.1]}
4. Bb5 {[%clk 0:03:01.8]} 4... Qe7 {[%clk 0:03:01.4]} 5. Nf3 {[%clk 0:02:53.8]}
5... e4 {[%clk 0:02:56.4]} 6. Nd4 {[%clk 0:02:52.1]} 6... Qe5 {[%clk 0:02:55.1]}
7. Bxc6 {[%clk 0:02:12.9]} 7... dxc6 {[%clk 0:02:54.3]} 8. Nc3 {[%clk
0:02:13.1]} 8... Bg4 {[%clk 0:02:51.1]} 9. f3 {[%clk 0:02:09.9]} 9... Bh5 {[%clk
0:02:49]} 10. Na4 {[%clk 0:01:56.1]} 10... c5 {[%clk 0:02:16.7]} 11. Nb5 {[%clk
0:01:45.9]} 11... Qe7 {[%clk 0:02:14.8]} 12. g4 {[%clk 0:01:34.9]} 12... Nxg4
{[%clk 0:01:55.2]} 13. fxg4 {[%clk 0:01:16.4]} 13... Qh4+ {[%clk 0:01:55.1]} 14.
Kf1 {[%clk 0:01:16.7]} 14... Bxg4 {[%clk 0:01:48.4]} 15. Qe1 {[%clk 0:01:16.6]}
15... Qf6+ {[%clk 0:00:45.1]} 16. Bxf6 {[%clk 0:01:15.1]} 16... Bh3+ {[%clk
0:00:39.2]} 17. Kf2 {[%clk 0:01:13.9]} 17... gxf6 {[%clk 0:00:36.5]} 18. Nxc7+
{[%clk 0:01:13.4]} 18... Kd7 {[%clk 0:00:36]} 19. Nxa8 {[%clk 0:01:13.5]} 19...
f5 {[%clk 0:00:33.5]} 20. d4 {[%clk 0:01:06.1]} 20... Be7 {[%clk 0:00:31.2]} 21.
Nxc5+ {[%clk 0:01:03.3]} 21... Kc6 {[%clk 0:00:30.9]} 22. Ke2 {[%clk 0:00:59.9]}
22... Bg4+ {[%clk 0:00:26.6]} 23. Kd2 {[%clk 0:00:59.5]} 23... Rxa8 {[%clk
0:00:26.9]} 24. Rg1 {[%clk 0:00:58.1]} 24... Bf3 {[%clk 0:00:22.9]} 25. Qg3
{[%clk 0:00:56.9]} 25... b6 {[%clk 0:00:20.6]} 26. Qe5 {[%clk 0:00:54.9]} 26...
Bd6 {[%clk 0:00:17.8]} 27. Qxf5 {[%clk 0:00:48.4]} 27... bxc5 {[%clk 0:00:18.1]}
28. Raf1 {[%clk 0:00:42]} 28... Rd8 {[%clk 0:00:12.4]} 29. Rxf3 {[%clk
0:00:41.5]} 29... exf3 {[%clk 0:00:13.3]} 30. Qxf3+ {[%clk 0:00:41.7]} 30... Kb6
{[%clk 0:00:13.7]} 31. Ke2 {[%clk 0:00:38]} 31... cxd4 {[%clk 0:00:12.9]} 32.
exd4 {[%clk 0:00:37.5]} 32... Rc8 {[%clk 0:00:11.8]} 33. c4 {[%clk 0:00:37.1]}
33... Re8+ {[%clk 0:00:12.3]} 34. Kd3 {[%clk 0:00:37.2]} 34... Bxh2 {[%clk
0:00:12.9]} 35. Rg5 {[%clk 0:00:35.2]} 35... a6 {[%clk 0:00:10.2]} 36. Qf6+
{[%clk 0:00:35.1]} 36... Re6 {[%clk 0:00:09]} 37. Qxf7 {[%clk 0:00:33.9]} 37...
Rh6 {[%clk 0:00:08.5]} 38. c5+ {[%clk 0:00:31.2]} 38... Ka5 {[%clk 0:00:05]} 39.
c6+ {[%clk 0:00:28.6]} 39... Kb4 {[%clk 0:00:03.6]} 40. Qc4+ {[%clk 0:00:27.3]}
40... Ka3 {[%clk 0:00:03.7]} 41. Qa4+ {[%clk 0:00:27.3]} 41... Kb2 {[%clk
0:00:04.2]} 42. Rg2+ {[%clk 0:00:27.5]} 42... Ka1 {[%clk 0:00:03.8]} 43. Rxh2
{[%clk 0:00:27.1]} 43... Rxh2 {[%clk 0:00:04.7]} 44. c7 {[%clk 0:00:27.2]} 1-0

[Event "*** Titled Tuesday Blitz"]
[Site "Chess.com"]
[Date "2021.03.09"]
[Round "2"]
[White "FairChess_on_YouTube"]
[Black "gross-aleks"]
[Result "1-0"]
[WhiteElo "2965"]
[BlackElo "2580"]
[TimeControl "180+1"]
[EndTime "10:19:13 PST"]
[Termination "FairChess_on_YouTube won by resignation"]

1. Nf3 {[%clk 0:03:00.9]} 1... Nf6 {[%clk 0:02:59]} 2. c4 {[%clk 0:03:00.9]}
2... e6 {[%clk 0:02:54.1]} 3. b3 {[%clk 0:03:00.6]} 3... d5 {[%clk 0:02:45.9]}
4. Bb2 {[%clk 0:03:00.6]} 4... c5 {[%clk 0:02:41.3]} 5. e3 {[%clk 0:03:00.4]}
5... a6 {[%clk 0:02:35.6]} 6. cxd5 {[%clk 0:02:55.3]} 6... Nxd5 {[%clk 0:02:35]}
7. Nc3 {[%clk 0:02:48.4]} 7... Nc6 {[%clk 0:02:27.5]} 8. Qb1 {[%clk 0:02:48.1]}
8... Nf6 {[%clk 0:02:15]} 9. Bd3 {[%clk 0:02:37.9]} 9... Be7 {[%clk 0:02:09.2]}
10. O-O {[%clk 0:02:37.2]} 10... Nb4 {[%clk 0:02:06.1]} 11. Be2 {[%clk
0:02:36.8]} 11... O-O {[%clk 0:02:03.5]} 12. Rd1 {[%clk 0:02:36.5]} 12... Qc7
{[%clk 0:01:47.6]} 13. Ne4 {[%clk 0:02:27.4]} 13... Nxe4 {[%clk 0:01:34.2]} 14.
Qxe4 {[%clk 0:02:26.9]} 14... f5 {[%clk 0:01:33.8]} 15. Qb1 {[%clk 0:02:13.5]}
15... b5 {[%clk 0:01:21.4]} 16. Be5 {[%clk 0:02:10.3]} 16... Bd6 {[%clk
0:01:15.8]} 17. Qb2 {[%clk 0:02:09.7]} 17... Bb7 {[%clk 0:01:10.2]} 18. Bxd6
{[%clk 0:02:05.2]} 18... Qxd6 {[%clk 0:01:09.6]} 19. d4 {[%clk 0:02:05.1]} 19...
Rad8 {[%clk 0:00:55.6]} 20. Rac1 {[%clk 0:02:01.1]} 20... cxd4 {[%clk
0:00:49.3]} 21. Nxd4 {[%clk 0:01:58.8]} 21... Nd5 {[%clk 0:00:35.5]} 22. Bf3
{[%clk 0:01:55.5]} 22... Qe7 {[%clk 0:00:15.8]} 23. h3 {[%clk 0:01:48.3]} 23...
Rd7 {[%clk 0:00:12.5]} 24. Nc6 {[%clk 0:01:43.1]} 24... Qf6 {[%clk 0:00:11.8]}
25. Qxf6 {[%clk 0:01:36.1]} 25... Rxf6 {[%clk 0:00:12.7]} 26. Bxd5 {[%clk
0:01:31.8]} 26... exd5 {[%clk 0:00:13.6]} 27. Nd4 {[%clk 0:01:29.4]} 27... f4
{[%clk 0:00:13.6]} 28. exf4 {[%clk 0:01:29.1]} 28... Rxf4 {[%clk 0:00:13.6]} 29.
f3 {[%clk 0:01:24.9]} 29... Rff7 {[%clk 0:00:12.7]} 30. Kf2 {[%clk 0:01:21.9]}
30... Rfe7 {[%clk 0:00:13]} 31. Rc5 {[%clk 0:01:17.1]} 31... Kf7 {[%clk
0:00:13.1]} 32. g4 {[%clk 0:01:16.5]} 32... g6 {[%clk 0:00:13.1]} 33. h4 {[%clk
0:01:16.6]} 33... Re5 {[%clk 0:00:13]} 34. Rdc1 {[%clk 0:01:12]} 34... Ke7
{[%clk 0:00:11.7]} 35. Rc7 {[%clk 0:01:08.4]} 35... Kd6 {[%clk 0:00:11.6]} 36.
Rxd7+ {[%clk 0:01:08.6]} 36... Kxd7 {[%clk 0:00:12.5]} 37. b4 {[%clk 0:01:09.2]}
37... Re8 {[%clk 0:00:11.9]} 38. a3 {[%clk 0:01:08.9]} 38... Kd6 {[%clk
0:00:12.1]} 39. Rc3 {[%clk 0:01:06.1]} 39... Re7 {[%clk 0:00:08.5]} 40. Re3
{[%clk 0:01:05.4]} 40... Rc7 {[%clk 0:00:08.8]} 41. Re6+ {[%clk 0:01:05.1]}
41... Kd7 {[%clk 0:00:09]} 42. Rb6 {[%clk 0:01:03.2]} 42... Bc8 {[%clk
0:00:08.4]} 43. Ne6 {[%clk 0:00:58.4]} 43... Rc2+ {[%clk 0:00:07.8]} 44. Kg3
{[%clk 0:00:58.4]} 44... Rc3 {[%clk 0:00:08]} 45. Nf8+ {[%clk 0:00:48.4]} 45...
Kc7 {[%clk 0:00:07.8]} 46. Rf6 {[%clk 0:00:49]} 46... Rxa3 {[%clk 0:00:08]} 47.
Nxh7 {[%clk 0:00:48.6]} 47... Ra4 {[%clk 0:00:08.3]} 48. Rxg6 {[%clk 0:00:47.6]}
48... Rxb4 {[%clk 0:00:08.6]} 49. Nf6 {[%clk 0:00:48.1]} 49... Bb7 {[%clk
0:00:06.5]} 50. h5 {[%clk 0:00:47.9]} 50... Rb1 {[%clk 0:00:07.4]} 51. h6 {[%clk
0:00:44.5]} 51... Re1 {[%clk 0:00:07]} 52. h7 {[%clk 0:00:43.9]} 1-0

[Event "*** Titled Tuesday Blitz"]
[Site "Chess.com"]
[Date "2021.03.09"]
[Round "2"]
[White "GM_Huschenbeth"]
[Black "Guzman70"]
[Result "1-0"]
[WhiteElo "2632"]
[BlackElo "2337"]
[TimeControl "180+1"]
[EndTime "10:19:13 PST"]
[Termination "GM_Huschenbeth won on time"]

1. e4 {[%clk 0:03:00.9]} 1... c6 {[%clk 0:02:56.3]} 2. d4 {[%clk 0:03:00.3]}
2... d5 {[%clk 0:02:56.8]} 3. Nc3 {[%clk 0:02:59.5]} 3... dxe4 {[%clk
0:02:55.3]} 4. Nxe4 {[%clk 0:03:00.4]} 4... Nf6 {[%clk 0:02:55.8]} 5. Nxf6+
{[%clk 0:02:58.2]} 5... exf6 {[%clk 0:02:56.7]} 6. c3 {[%clk 0:02:56.3]} 6...
Bd6 {[%clk 0:02:56.3]} 7. Bd3 {[%clk 0:02:56.1]} 7... O-O {[%clk 0:02:55.1]} 8.
Qc2 {[%clk 0:02:56.2]} 8... Re8+ {[%clk 0:02:54.2]} 9. Ne2 {[%clk 0:02:56]} 9...
h5 {[%clk 0:02:54.3]} 10. O-O {[%clk 0:02:55.7]} 10... Qc7 {[%clk 0:02:46.5]}
11. h3 {[%clk 0:02:49.5]} 11... Nd7 {[%clk 0:02:44.6]} 12. Be3 {[%clk
0:02:42.5]} 12... c5 {[%clk 0:02:28.2]} 13. d5 {[%clk 0:02:28.9]} 13... Ne5
{[%clk 0:02:17]} 14. c4 {[%clk 0:01:58.7]} 14... g6 {[%clk 0:01:57.6]} 15. Nc3
{[%clk 0:01:45.3]} 15... Nxd3 {[%clk 0:01:57.7]} 16. Qxd3 {[%clk 0:01:46.2]}
16... Bf5 {[%clk 0:01:57.1]} 17. Qd2 {[%clk 0:01:44.9]} 17... a6 {[%clk
0:01:48.6]} 18. Rfe1 {[%clk 0:01:44.4]} 18... Re7 {[%clk 0:01:44.2]} 19. Re2
{[%clk 0:01:36.8]} 19... Rae8 {[%clk 0:01:42.9]} 20. Rae1 {[%clk 0:01:36.4]}
20... Re5 {[%clk 0:01:08.7]} 21. Bf4 {[%clk 0:01:30.8]} 21... Rxe2 {[%clk
0:01:08.3]} 22. Rxe2 {[%clk 0:01:31.7]} 22... Rxe2 {[%clk 0:01:06.4]} 23. Nxe2
{[%clk 0:01:32.6]} 23... b5 {[%clk 0:00:58.6]} 24. Bxd6 {[%clk 0:01:17.5]} 24...
Qxd6 {[%clk 0:00:58]} 25. b3 {[%clk 0:01:18.4]} 25... b4 {[%clk 0:00:56.2]} 26.
Ng3 {[%clk 0:01:10.4]} 26... Bd7 {[%clk 0:00:38.2]} 27. Ne4 {[%clk 0:01:08.5]}
27... Qe7 {[%clk 0:00:34.7]} 28. Qe3 {[%clk 0:01:06.4]} 28... Bf5 {[%clk
0:00:15]} 29. Nxc5 {[%clk 0:01:04.1]} 29... Qxe3 {[%clk 0:00:11.8]} 30. fxe3
{[%clk 0:01:05]} 30... Bb1 {[%clk 0:00:11.9]} 31. Nxa6 {[%clk 0:01:02.2]} 31...
Bxa2 {[%clk 0:00:11.5]} 32. d6 {[%clk 0:00:29.3]} 32... Kf8 {[%clk 0:00:10.2]}
33. Nxb4 {[%clk 0:00:26.3]} 33... Bxb3 {[%clk 0:00:09.8]} 34. c5 {[%clk
0:00:26.8]} 34... Ba4 {[%clk 0:00:03.4]} 35. c6 {[%clk 0:00:20.1]} 35... Ke8
{[%clk 0:00:03.5]} 36. c7 {[%clk 0:00:15.1]} 36... Kd7 {[%clk 0:00:03.1]} 37.
Nd5 {[%clk 0:00:14.8]} 37... Bc6 {[%clk 0:00:02.2]} 38. Nb6+ {[%clk 0:00:14.4]}
1-0